bitfinex-derivatives/quotes_ETHF0:USTF0_20260117
["timestamp","ask_amount","ask_price","bid_price","bid_amount"]
[1768652907338,1.09439835,3303.8,3302.5,0.15145]
[1768652907538,0.1397527,3303.8,3302.5,0.15145]
[1768652945084,0.1397527,3303.8,3302.1,0.97822673]
[1768652947576,0.95141019,3303.7,3301.9,0.15148]
[1768652947782,0.13547482,3303.6,3301.9,0.15148]
[1768652955289,0.13547482,3303.5,3302.3,0.97860187]
[1768652956891,1.11407669,3303.1,3301.9,0.15148]
[1768652957280,1.11407669,3303.1,3301.9,1.13008187]
[1768652957992,0.13547482,3303.1,3301.9,1.13008187]
[1768652962289,0.00246144,3304.1,3302.9,0.97860187]
[1768652962592,0.9498925,3304.0,3302.7,0.97860187]
[1768652962796,0.9498925,3303.9,3302.7,0.97860187]
[1768652962983,0.9498925,3303.8,3302.7,0.97860187]
[1768652963184,0.9498925,3303.7,3302.7,0.97860187]
[1768652963384,0.98106331,3304.1,3302.7,0.97860187]
[1768652963590,0.97860187,3303.9,3302.7,0.97860187]
[1768652963892,0.94990033,3303.8,3302.5,0.97860187]
[1768652965995,0.97860187,3303.7,3302.3,1.11114351]
[1768652967395,0.97860187,3303.7,3302.3,0.13254164]
[1768652967594,0.97860187,3303.7,3302.4,0.97860187]
[1768652968292,0.94992479,3303.6,3302.4,0.97860187]
[1768652968499,0.97860187,3303.7,3302.4,0.97860187]
[1768652968801,0.94992479,3303.6,3302.4,0.97860187]
[1768652969098,0.97860187,3303.7,3302.4,0.97860187]
[1768652969398,0.94994862,3303.6,3302.4,0.97860187]
[1768652969697,0.97860187,3303.7,3302.4,0.97860187]
[1768652969897,0.94996509,3303.6,3302.4,0.97860187]
[1768652970104,0.97860187,3303.7,3302.4,0.97860187]
[1768652970287,0.94996509,3303.6,3302.4,0.97860187]
[1768652970484,0.97860187,3303.7,3302.4,0.97860187]
[1768652970687,0.94998103,3303.6,3302.4,0.97860187]
[1768652970898,0.97860187,3303.7,3302.4,0.97860187]
[1768652971091,0.94999364,3303.6,3302.4,0.97860187]
[1768652971292,0.97860187,3303.7,3302.4,0.97860187]
[1768652971601,0.95002591,3303.6,3302.4,0.97860187]
[1768652971795,0.97860187,3303.7,3302.4,0.97860187]
[1768652971995,0.95002497,3303.6,3302.4,0.97860187]
[1768652972196,0.97860187,3303.7,3302.4,0.97860187]
[1768652972496,0.95006294,3303.6,3302.4,0.97860187]
[1768652972695,0.97860187,3303.7,3302.4,0.97860187]
[1768652972897,0.95270344,3303.6,3302.4,0.97860187]
[1768652973104,0.97860187,3303.7,3302.4,0.97860187]
[1768652973294,0.95270345,3303.6,3302.4,0.97860187]
[1768652973494,0.97860187,3303.7,3302.4,0.97860187]
[1768652973800,0.95273744,3303.6,3302.4,0.97860187]
[1768652974003,0.97860187,3303.7,3302.4,0.97860187]
[1768652974199,0.95274926,3303.6,3302.4,0.97860187]
[1768652974502,0.97860187,3303.7,3302.4,0.97860187]
[1768652974703,0.95280072,3303.6,3302.4,0.97860187]
[1768652974901,0.97860187,3303.7,3302.4,0.97860187]
[1768652975105,0.95280078,3303.6,3302.4,0.97860187]
[1768652975296,0.97860187,3303.7,3302.4,0.97860187]
[1768652975498,0.95286014,3303.6,3302.4,0.97860187]
[1768652975693,0.97860187,3303.7,3302.4,0.97860187]
[1768652976004,0.95286014,3303.6,3302.4,0.97860187]
[1768652976194,0.97860187,3303.7,3302.4,0.97860187]
[1768652976494,0.95284425,3303.6,3302.4,0.97860187]
[1768652976694,0.97860187,3303.7,3302.4,0.97860187]
[1768652977000,0.95292103,3303.6,3302.4,0.97860187]
[1768652977187,0.97860187,3303.7,3302.4,0.97860187]
[1768652977394,0.95291286,3303.6,3302.4,0.97860187]
[1768652977600,0.97860187,3303.7,3302.4,0.97860187]
[1768652977801,0.95297699,3303.6,3302.4,0.97860187]
[1768652978002,0.97860187,3303.7,3302.4,0.97860187]
[1768652978202,0.95297699,3303.6,3302.4,0.97860187]
[1768652978395,0.97860187,3303.7,3302.4,0.97860187]
[1768652978595,0.95300103,3303.6,3302.4,0.97860187]
[1768652978797,0.97860187,3303.7,3302.4,0.97860187]
[1768652978998,0.95299936,3303.6,3302.4,0.97860187]
[1768652979201,0.97860187,3303.7,3302.4,0.97860187]
[1768652979402,0.9529988,3303.6,3302.4,0.97860187]
[1768652979601,0.97860187,3303.7,3302.4,0.97860187]
[1768652979802,0.95303103,3303.6,3302.4,0.97860187]
[1768652980002,0.97860187,3303.7,3302.4,0.97860187]
[1768652980210,0.95300601,3303.6,3302.4,0.97860187]
[1768652980510,0.97860187,3303.7,3302.4,0.97860187]
[1768652980696,0.95302172,3303.6,3302.4,0.97860187]
[1768652980990,0.97860187,3303.7,3302.4,0.97860187]
[1768652981195,0.95302384,3303.6,3302.4,0.97860187]
[1768652981396,0.97860187,3303.7,3302.4,0.97860187]
[1768652981605,0.95305609,3303.6,3302.4,0.97860187]
[1768652981901,0.97860187,3303.7,3302.4,0.97860187]
[1768652982101,0.95305839,3303.6,3302.4,0.97860187]
[1768652982404,0.97860187,3303.7,3302.4,0.97860187]
[1768652982608,0.9530964,3303.6,3302.4,0.97860187]
[1768652982904,0.97860187,3303.7,3302.4,0.97860187]
[1768652983104,0.95309481,3303.6,3302.4,0.97860187]
[1768652983306,0.97860187,3303.7,3302.3,1.11114351]
[1768652983498,0.953139,3303.6,3302.3,1.11114351]
[1768652983698,0.97860187,3303.7,3302.3,1.11114351]
[1768652983899,0.95313655,3303.6,3302.3,1.11114351]
[1768652984108,0.97860187,3303.7,3302.3,1.11114351]
[1768652984302,0.95313619,3303.6,3302.3,1.11114351]
[1768652984503,0.97860187,3303.7,3302.3,1.11114351]
[1768652984697,0.95318513,3303.6,3302.3,1.11114351]
[1768652984897,0.97860187,3303.7,3302.3,1.11114351]
[1768652985095,0.95318514,3303.6,3302.3,1.11114351]
[1768652985311,0.95324185,3303.5,3302.3,1.11114351]
[1768652985608,0.97860187,3303.7,3302.3,1.11114351]
[1768652985800,0.95324187,3303.6,3302.3,1.11114351]
[1768652986000,0.97860187,3303.7,3302.3,1.11114351]
[1768652986001,0.95324187,3303.5,3302.3,1.11114351]
[1768652986205,0.97860187,3303.7,3302.3,1.11114351]
[1768652986405,0.95330885,3303.6,3302.3,1.11114351]
[1768652986706,0.95330885,3303.5,3302.3,1.11114351]
[1768652986895,0.97860187,3303.7,3302.3,1.11114351]
[1768652987100,0.95330999,3303.6,3302.3,1.11114351]
[1768652987300,0.95330999,3303.5,3302.3,1.11114351]
[1768652987497,0.97860187,3303.7,3302.3,1.11114351]
[1768652987703,0.95333437,3303.6,3302.3,1.11114351]
[1768652987901,0.95333437,3303.5,3302.3,1.11114351]
[1768652988111,0.97860187,3303.7,3302.3,1.11114351]
[1768652988302,0.95333437,3303.6,3302.3,1.11114351]
[1768652988502,0.95333437,3303.5,3302.3,1.11114351]
[1768652988813,0.97860187,3303.7,3302.3,1.11114351]
[1768652989115,0.95336192,3303.6,3302.3,1.11114351]
[1768652989312,0.95336192,3303.5,3302.3,1.11114351]
[1768652989613,0.97860187,3303.7,3302.3,1.11114351]
[1768652989813,0.95340089,3303.6,3302.3,1.11114351]
[1768652990009,0.95340089,3303.5,3302.3,1.11114351]
[1768652990216,0.97860187,3303.7,3302.3,1.11114351]
[1768652990414,0.95343822,3303.6,3302.3,1.11114351]
[1768652990617,0.95343822,3303.5,3302.3,1.11114351]
[1768652990913,0.97860187,3303.7,3302.3,1.11114351]
[1768652991113,0.95343983,3303.6,3302.3,1.11114351]
[1768652991315,0.95343983,3303.5,3302.3,1.11114351]
[1768652991512,0.97860187,3303.7,3302.3,1.11114351]
[1768652991713,0.95348759,3303.6,3302.3,1.11114351]
[1768652991905,0.95348759,3303.5,3302.3,1.11114351]
[1768652992107,0.97860187,3303.7,3302.3,1.11114351]
[1768652992308,0.95348759,3303.6,3302.3,1.11114351]
[1768652992507,0.95348759,3303.5,3302.3,1.11114351]
[1768652992711,0.97860187,3303.7,3302.3,1.11114351]
[1768652993010,0.95373064,3303.6,3302.3,1.11114351]
[1768652993314,0.95373064,3303.5,3302.3,1.11114351]
[1768652993516,0.97860187,3303.7,3302.3,1.11114351]
[1768652993720,0.95373616,3303.6,3302.3,1.11114351]
[1768652993915,0.95373616,3303.5,3302.3,1.11114351]
[1768652994126,0.97860187,3303.7,3302.3,1.11114351]
[1768652994317,0.95373616,3303.6,3302.3,1.11114351]
[1768652994517,0.95373616,3303.5,3302.3,1.11114351]
[1768652994720,0.97860187,3303.7,3302.3,1.11114351]
[1768652995017,0.95374243,3303.6,3302.3,1.11114351]
[1768652995218,0.95374243,3303.5,3302.3,1.11114351]
[1768652995418,0.97860187,3303.7,3302.3,1.11114351]
[1768652995608,0.95374818,3303.6,3302.3,1.11114351]
[1768652995805,0.95374818,3303.5,3302.3,1.11114351]
[1768652996017,0.97860187,3303.7,3302.3,1.11114351]
[1768652996214,0.9537483,3303.6,3302.3,1.11114351]
[1768652996420,0.9537483,3303.5,3302.3,1.11114351]
[1768652996613,0.97860187,3303.7,3302.3,1.11114351]
[1768652996816,0.95375273,3303.6,3302.3,1.11114351]
[1768652997024,0.95375273,3303.5,3302.3,1.11114351]
[1768652997217,0.97860187,3303.7,3302.3,1.11114351]
[1768652997417,0.95375693,3303.6,3302.3,1.11114351]
[1768652997614,0.95375693,3303.5,3302.3,1.11114351]
[1768652997817,0.97860187,3303.7,3302.3,1.11114351]
[1768652998016,0.95375693,3303.6,3302.3,1.11114351]
[1768652998222,0.95375693,3303.5,3302.3,1.11114351]
[1768652998421,0.97860187,3303.7,3302.3,1.11114351]
[1768652998720,0.9537603,3303.6,3302.3,1.11114351]
[1768652999018,0.9537603,3303.5,3302.3,1.11114351]
[1768652999220,0.97860187,3303.7,3302.3,1.11114351]
[1768652999421,0.95376445,3303.6,3302.3,1.11114351]
[1768652999619,0.95376445,3303.5,3302.3,1.11114351]
[1768652999821,0.97860187,3303.7,3302.3,1.11114351]
[1768653000119,0.95376445,3303.6,3302.3,1.11114351]
[1768653000420,0.95376445,3303.5,3302.3,1.11114351]
[1768653000622,0.97860187,3303.7,3302.3,1.11114351]
[1768653000819,0.95377031,3303.6,3302.3,1.11114351]
[1768653001022,0.95377031,3303.5,3302.3,1.11114351]
[1768653001221,0.97860187,3303.7,3302.3,1.11114351]
[1768653001521,0.95384204,3303.6,3302.3,1.11114351]
[1768653001721,0.95384204,3303.5,3302.3,1.11114351]
[1768653002021,0.97860187,3303.7,3302.3,1.11114351]
[1768653002321,0.95384204,3303.6,3302.3,1.11114351]
[1768653002623,0.95384204,3303.5,3302.5,1.13868119]
[1768653002830,0.97860187,3303.9,3302.5,1.13868119]
[1768653003017,0.9544994,3303.8,3302.5,1.13868119]
[1768653003216,0.9544994,3303.7,3302.5,1.13868119]
[1768653003417,0.9544994,3303.6,3302.5,1.13868119]
[1768653003612,0.9544994,3303.5,3302.5,1.13868119]
[1768653003817,0.97860187,3303.9,3302.7,0.97860187]
[1768653004018,0.95450245,3303.8,3302.7,0.97860187]
[1768653004311,0.95450245,3303.7,3302.7,0.97860187]
[1768653004511,0.95450245,3303.6,3302.7,0.97860187]
[1768653004725,0.95450245,3303.5,3302.7,0.97860187]
[1768653004921,0.97860187,3303.9,3302.7,0.97860187]
[1768653005123,0.95448269,3303.8,3302.7,0.97860187]
[1768653005328,0.95448269,3303.7,3302.7,0.97860187]
[1768653005527,0.95448269,3303.6,3302.7,0.97860187]
[1768653005827,0.95448269,3303.5,3302.7,0.97860187]
[1768653006021,0.97860187,3303.9,3302.7,0.97860187]
[1768653006214,0.95439768,3303.8,3302.7,0.97860187]
[1768653006415,0.95439768,3303.7,3302.7,0.97860187]
[1768653006619,0.95439768,3303.6,3302.7,0.97860187]
[1768653006914,0.97860187,3303.9,3302.7,0.97860187]
[1768653007114,0.9543937,3303.8,3302.7,0.97860187]
[1768653007320,0.9543937,3303.7,3302.7,0.97860187]
[1768653007519,0.9543937,3303.6,3302.7,0.97860187]
[1768653007719,0.97860187,3303.9,3302.7,0.97860187]
[1768653007925,0.95433107,3303.8,3302.7,0.97860187]
[1768653008130,0.95433107,3303.7,3302.7,0.97860187]
[1768653008327,0.95433107,3303.6,3302.7,0.97860187]
[1768653008519,0.97860187,3303.9,3302.7,0.97860187]
[1768653008719,0.95422459,3303.8,3302.7,0.97860187]
[1768653008923,0.95422459,3303.7,3302.7,0.97860187]
[1768653009133,0.95422459,3303.6,3302.7,0.97860187]
[1768653009420,0.97860187,3303.9,3302.7,0.97860187]
[1768653009624,0.95207011,3303.8,3302.7,0.97860187]
[1768653009821,0.95207011,3303.7,3302.7,0.97860187]
[1768653010021,0.95207011,3303.6,3302.7,0.97860187]
[1768653010222,0.97860187,3303.9,3302.7,0.97860187]
[1768653010422,0.95203814,3303.8,3302.7,0.97860187]
[1768653010631,0.95203814,3303.7,3302.7,0.97860187]
[1768653010831,0.95203814,3303.6,3302.7,0.97860187]
[1768653011032,0.97860187,3303.9,3302.7,0.97860187]
[1768653011331,0.95203814,3303.8,3302.7,0.97860187]
[1768653011537,0.95203814,3303.7,3302.5,1.13868119]
[1768653011739,0.97860187,3303.5,3302.1,1.13868119]
[1768653012037,0.97860187,3302.9,3301.7,0.16007932]
[1768653012331,0.97860187,3303.1,3301.8,0.97860187]
[1768653012934,0.97860187,3302.9,3301.7,0.16007932]
[1768653013330,1.13952209,3303.1,3301.7,0.16007932]
[1768653015338,0.16092022,3303.1,3301.7,0.16007932]
[1768653016233,0.16092022,3303.1,3301.5,0.15149]
[1768653016438,0.16092022,3303.1,3301.2,0.16391308]
[1768653017243,0.16092022,3303.1,3301.5,0.16007932]
[1768653017845,1.13991031,3303.5,3301.5,0.16007932]
[1768653018043,0.95044819,3303.4,3301.5,0.16007932]
[1768653018241,0.95044819,3303.3,3301.5,0.16007932]
[1768653018449,0.95044819,3303.2,3301.5,0.16007932]
[1768653018642,1.16092022,3303.5,3301.5,0.16007932]
[1768653018841,0.95038626,3303.4,3301.5,0.16007932]
[1768653019139,0.95038626,3303.3,3301.5,0.16007932]
[1768653019341,0.95038626,3303.2,3301.5,0.16007932]
[1768653019541,1.16092022,3303.5,3301.5,0.16007932]
[1768653019542,0.16092022,3303.4,3301.5,0.16007932]
[1768653019746,1.1113791,3303.3,3301.5,0.16007932]
[1768653019947,0.95045888,3303.2,3301.5,0.16007932]
[1768653020151,0.16092022,3303.3,3301.5,0.16007932]
[1768653020354,0.95037775,3303.2,3301.5,0.16007932]
[1768653020643,0.16092022,3303.3,3301.5,0.16007932]
[1768653020847,0.95035068,3303.2,3301.5,0.16007932]
[1768653021049,0.16092022,3303.3,3301.5,0.16007932]
[1768653021241,0.95035068,3303.2,3301.5,0.16007932]
[1768653021445,0.16092022,3303.3,3301.5,0.16007932]
[1768653021639,0.95026143,3303.2,3301.5,0.16007932]
[1768653021849,0.16092022,3303.3,3301.5,0.16007932]
[1768653022151,1.13506662,3303.2,3301.5,0.16007932]
[1768653022340,0.18480369,3303.2,3301.5,0.16007932]
[1768653037159,0.94973683,3303.1,3301.5,0.16007932]
[1768653037457,0.18480369,3303.2,3301.5,0.16007932]
[1768653037655,0.94973683,3303.1,3301.5,0.16007932]
[1768653037858,0.18480369,3303.2,3301.5,0.16007932]
[1768653038053,0.94973688,3303.1,3301.5,0.16007932]
[1768653038254,0.18480369,3303.2,3301.5,0.16007932]
[1768653038454,0.94994164,3303.1,3301.5,0.16007932]
[1768653038655,0.18480369,3303.2,3301.5,0.16007932]
[1768653038856,0.94994164,3303.1,3301.5,0.16007932]
[1768653039061,0.18480369,3303.2,3301.5,0.16007932]
[1768653039265,0.94993827,3303.1,3301.5,0.16007932]
[1768653039463,0.18480369,3303.2,3301.5,0.16007932]
[1768653039653,1.15704197,3303.1,3301.5,0.16007932]
[1768653039855,0.20684653,3303.1,3301.5,0.16007932]
[1768653041262,0.95115182,3303.0,3301.5,0.16007932]
[1768653041465,0.20684653,3303.1,3301.5,0.16007932]
[1768653041762,0.95115276,3303.0,3301.5,0.16007932]
[1768653041964,0.20684653,3303.1,3301.5,0.16007932]
[1768653042163,0.95115276,3303.0,3301.5,0.16007932]
[1768653042365,0.20684653,3303.1,3301.5,0.16007932]
[1768653042569,0.95133379,3303.0,3301.5,0.16007932]
[1768653042859,0.20684653,3303.1,3301.5,0.16007932]
[1768653043065,0.95130758,3303.0,3301.5,0.16007932]
[1768653043255,0.20684653,3303.1,3301.5,0.16007932]
[1768653043451,0.95132314,3303.0,3301.5,0.16007932]
[1768653043660,0.20684653,3303.1,3301.5,0.16007932]
[1768653043860,0.95132314,3303.0,3301.5,0.16007932]
[1768653044061,0.20684653,3303.1,3301.5,0.16007932]
[1768653044257,0.95133735,3303.0,3301.5,0.16007932]
[1768653044464,0.20684653,3303.1,3301.5,0.16007932]
[1768653044663,0.95134051,3303.0,3301.5,0.16007932]
[1768653044865,0.20684653,3303.1,3301.5,0.16007932]
[1768653045067,0.95134131,3303.0,3301.5,0.16007932]
[1768653045269,0.20684653,3303.1,3301.5,0.16007932]
[1768653045460,0.95136421,3303.0,3301.5,0.16007932]
[1768653045662,0.20684653,3303.1,3301.5,0.16007932]
[1768653045865,0.95136433,3303.0,3301.5,0.16007932]
[1768653046062,0.20684653,3303.1,3301.5,0.16007932]
[1768653046266,0.95139131,3303.0,3301.5,0.16007932]
[1768653046563,0.20684653,3303.1,3301.5,0.16007932]
[1768653046764,0.9513912,3303.0,3301.5,0.16007932]
[1768653047069,0.20684653,3303.1,3301.5,0.16007932]
[1768653047272,0.9514004,3303.0,3301.5,0.16007932]
[1768653047464,0.20684653,3303.1,3301.5,0.16007932]
[1768653047667,0.95140018,3303.0,3301.5,0.16007932]
[1768653047972,0.20684653,3303.1,3301.5,0.16007932]
[1768653048165,0.95140018,3303.0,3301.5,0.16007932]
[1768653048364,0.20684653,3303.1,3301.5,0.16007932]
[1768653048568,0.9514541,3303.0,3301.5,0.16007932]
[1768653048764,0.20684653,3303.1,3301.5,0.16007932]
[1768653048966,0.9514541,3303.0,3301.5,0.16007932]
[1768653049170,0.20684653,3303.1,3301.5,0.16007932]
[1768653049466,0.95154252,3303.0,3301.5,0.16007932]
[1768653049672,0.20684653,3303.1,3301.5,0.16007932]
[1768653049860,0.95150498,3303.0,3301.5,0.16007932]
[1768653050058,0.20684653,3303.1,3301.5,0.16007932]
[1768653050258,0.95150375,3303.0,3301.5,0.16007932]
[1768653050460,0.20684653,3303.1,3301.5,0.16007932]
[1768653050671,0.9515131,3303.0,3301.5,0.16007932]
[1768653050878,0.20684653,3303.1,3301.5,0.16007932]
[1768653051169,0.95151484,3303.0,3301.5,0.16007932]
[1768653051371,0.20684653,3303.1,3301.5,0.16007932]
[1768653051571,0.95153309,3303.0,3301.5,0.16007932]
[1768653051870,0.20684653,3303.1,3301.5,0.16007932]
[1768653052073,0.95153404,3303.0,3301.5,0.16007932]
[1768653052266,0.20684653,3303.1,3301.5,0.16007932]
[1768653052467,0.9515366,3303.0,3301.5,0.16007932]
[1768653052674,0.20684653,3303.1,3301.5,0.16007932]
[1768653052864,0.9515366,3303.0,3301.5,0.16007932]
[1768653053059,0.20684653,3303.1,3301.5,0.16007932]
[1768653053259,0.95154349,3303.0,3301.5,0.16007932]
[1768653053459,0.20684653,3303.1,3301.5,0.16007932]
[1768653053670,0.95154553,3303.0,3301.5,0.16007932]
[1768653053975,0.20684653,3303.1,3301.5,0.16007932]
[1768653054272,0.9515461,3303.0,3301.5,0.16007932]
[1768653054571,0.20684653,3303.1,3301.5,0.16007932]
[1768653054772,0.95154328,3303.0,3301.5,0.16007932]
[1768653054971,0.20684653,3303.1,3301.5,0.16007932]
[1768653055165,0.95154096,3303.0,3301.5,0.16007932]
[1768653055363,0.20684653,3303.1,3301.5,0.16007932]
[1768653055566,0.95154124,3303.0,3301.5,0.16007932]
[1768653055762,0.20684653,3303.1,3301.5,0.16007932]
[1768653055965,0.95154124,3303.0,3301.5,0.16007932]
[1768653056166,0.20684653,3303.1,3301.5,0.16007932]
[1768653056466,0.95154095,3303.0,3301.5,0.16007932]
[1768653056760,0.20684653,3303.1,3301.5,0.16007932]
[1768653056965,0.9515398,3303.0,3301.5,0.16007932]
[1768653057265,0.20684653,3303.1,3301.5,0.16007932]
[1768653057462,0.95154468,3303.0,3301.5,0.16007932]
[1768653057666,0.20684653,3303.1,3301.5,0.16007932]
[1768653057890,0.9515441,3303.0,3301.5,0.16007932]
[1768653058069,0.20684653,3303.1,3301.5,0.16007932]
[1768653058270,0.95153934,3303.0,3301.5,0.16007932]
[1768653058471,0.20684653,3303.1,3301.5,0.16007932]
[1768653058671,0.95153926,3303.0,3301.5,0.16007932]
[1768653058970,0.20684653,3303.1,3301.5,0.16007932]
[1768653059170,0.95154558,3303.0,3301.5,0.16007932]
[1768653059375,0.20684653,3303.1,3301.5,0.16007932]
[1768653059673,0.95154789,3303.0,3301.5,0.16007932]
[1768653059866,0.20684653,3303.1,3301.5,0.16007932]
[1768653060066,0.9515479,3303.0,3301.5,0.16007932]
[1768653060262,0.20684653,3303.1,3301.5,0.16007932]
[1768653060465,0.95154742,3303.0,3301.5,0.16007932]
[1768653060676,0.20684653,3303.1,3301.5,0.16007932]
[1768653060866,0.95154934,3303.0,3301.5,0.16007932]
[1768653061067,0.20684653,3303.1,3301.5,0.16007932]
[1768653061274,0.9515493,3303.0,3301.5,0.16007932]
[1768653061478,0.20684653,3303.1,3301.5,0.16007932]
[1768653061776,0.95154934,3303.0,3301.5,0.16007932]
[1768653061977,0.20684653,3303.1,3301.5,0.16007932]
[1768653062180,0.9515518,3303.0,3301.5,0.16007932]
[1768653062380,0.20684653,3303.1,3301.5,0.16007932]
[1768653062674,0.95155257,3303.0,3301.5,0.16007932]
[1768653062878,0.20684653,3303.1,3301.5,0.16007932]
[1768653063177,0.95157614,3303.0,3301.5,0.16007932]
[1768653063475,0.20684653,3303.1,3301.5,0.16007932]
[1768653063669,0.9515763,3303.0,3301.5,0.16007932]
[1768653063870,0.20684653,3303.1,3301.5,0.16007932]
[1768653064169,0.95157628,3303.0,3301.5,0.16007932]
[1768653064371,0.20684653,3303.1,3301.5,0.16007932]
[1768653064574,0.95157659,3303.0,3301.5,0.16007932]
[1768653064779,0.20684653,3303.1,3301.5,0.16007932]
[1768653064967,0.95157659,3303.0,3301.5,0.16007932]
[1768653065171,0.20684653,3303.1,3301.5,0.16007932]
[1768653065371,0.95157672,3303.0,3301.5,0.16007932]
[1768653065580,0.20684653,3303.1,3301.5,0.16007932]
[1768653065781,0.95157751,3303.0,3301.5,0.16007932]
[1768653065982,0.20684653,3303.1,3301.5,0.16007932]
[1768653066174,0.95158985,3303.0,3301.5,0.16007932]
[1768653066374,0.20684653,3303.1,3301.5,0.16007932]
[1768653069684,0.20684653,3303.1,3301.6,0.210503]
[1768653077281,0.20684653,3303.1,3301.9,0.97882839]
[1768653082988,0.20684653,3303.1,3301.8,0.97882839]
[1768653083892,1.18567492,3303.1,3301.8,0.97882839]
[1768653085987,0.95127309,3303.0,3301.6,1.18933139]
[1768653086181,1.18567492,3303.1,3301.6,1.18933139]
[1768653086386,0.95128001,3303.0,3301.6,1.18933139]
[1768653086585,1.18567492,3303.1,3301.6,1.18933139]
[1768653086788,0.95130793,3303.0,3301.6,1.18933139]
[1768653087084,1.18567492,3303.1,3301.6,1.18933139]
[1768653087292,0.95131679,3303.0,3301.6,1.18933139]
[1768653087494,0.97882839,3302.7,3301.5,0.15149]
[1768653087792,0.22789283,3302.8,3301.5,0.15149]
[1768653089284,0.97882839,3302.7,3301.5,0.15149]
[1768653090589,0.22789283,3302.8,3301.5,1.13031839]
[1768653090790,0.22789283,3302.8,3301.5,0.97882839]
[1768653094796,0.97882839,3302.5,3301.2,1.21430883]
[1768653094989,0.97882839,3302.5,3301.2,0.98266215]
[1768653095201,0.23525577,3302.6,3301.2,0.98266215]
[1768653096508,0.97882839,3302.3,3301.2,0.00383376]
[1768653098204,0.23525577,3302.4,3301.2,0.00383376]
[1768653101407,0.23525577,3302.4,3301.3,0.97882839]
[1768653111911,0.97882839,3302.7,3301.3,0.97882839]
[1768653116316,0.94997465,3302.6,3301.3,0.97882839]
[1768653116619,0.97882839,3302.7,3301.3,0.97882839]
[1768653116821,0.94998761,3302.6,3301.2,0.00383376]
[1768653117015,0.97882839,3302.7,3301.3,0.97882839]
[1768653117216,0.94998668,3302.6,3301.3,0.97882839]
[1768653117419,0.97882839,3302.7,3301.3,0.97882839]
[1768653117616,0.95012038,3302.6,3301.3,0.97882839]
[1768653117817,0.97882839,3302.7,3301.3,0.97882839]
[1768653118010,0.95012035,3302.6,3301.3,0.97882839]
[1768653118321,0.97882839,3302.7,3301.3,0.97882839]
[1768653118512,0.95023341,3302.6,3301.3,0.97882839]
[1768653118812,0.97882839,3302.7,3301.3,0.97882839]
[1768653119015,0.95023341,3302.6,3301.3,0.97882839]
[1768653119221,0.97882839,3302.7,3301.3,0.97882839]
[1768653119410,0.95029063,3302.6,3301.3,0.97882839]
[1768653119610,0.97882839,3302.7,3301.3,0.97882839]
[1768653119815,0.9503045,3302.6,3301.3,0.97882839]
[1768653120016,0.97882839,3302.7,3301.3,0.97882839]
[1768653120217,0.9503045,3302.6,3301.3,0.97882839]
[1768653120414,0.97882839,3302.7,3301.3,0.97882839]
[1768653120608,0.22607483,3302.8,3301.2,0.00383376]
[1768653120609,0.97882839,3302.5,3301.2,0.00383376]
[1768653128321,0.97882839,3302.5,3301.2,0.98266215]
[1768653131828,0.97882839,3302.7,3301.2,0.98266215]
[1768653132035,0.95311755,3302.6,3301.2,0.98266215]
[1768653132332,0.95311755,3302.5,3301.2,0.98266215]
[1768653132538,0.97882839,3302.7,3301.2,0.98266215]
[1768653132829,0.95311754,3302.6,3301.6,0.97882839]
[1768653133031,3.04332322,3303.2,3301.7,0.97882839]
[1768653133327,1.45585754,3303.1,3301.7,0.97882839]
[1768653133531,1.93200293,3303.0,3301.7,0.97882839]
[1768653133725,0.95317454,3302.9,3301.7,0.97882839]
[1768653133927,0.97882839,3303.0,3301.7,0.97882839]
[1768653133928,0.95317454,3302.8,3301.7,0.97882839]
[1768653134129,0.95317454,3302.7,3301.7,0.97882839]
[1768653134426,0.97882839,3303.0,3301.7,0.97882839]
[1768653134626,0.95275615,3302.9,3301.7,0.97882839]
[1768653134835,0.95275615,3302.8,3301.7,0.97882839]
[1768653135019,0.95275615,3302.7,3301.7,0.97882839]
[1768653135224,0.97882839,3303.0,3301.7,0.97882839]
[1768653135522,0.95266887,3302.9,3301.7,0.97882839]
[1768653135722,0.95266887,3302.8,3301.7,0.97882839]
[1768653135935,0.95266887,3302.7,3301.7,0.97882839]
[1768653136235,0.97882839,3303.0,3301.7,0.97882839]
[1768653136436,0.95259799,3302.9,3301.7,0.97882839]
[1768653136734,0.95259799,3302.8,3301.7,0.97882839]
[1768653136935,0.95259799,3302.7,3301.7,0.97882839]
[1768653137235,0.97882839,3303.0,3301.7,0.97882839]
[1768653137529,0.95254194,3302.9,3301.3,0.24124575]
[1768653137733,0.95254194,3302.8,3301.3,0.24124575]
[1768653137934,0.22607483,3303.1,3301.3,0.24124575]
[1768653138132,0.9525419,3303.0,3301.3,0.24124575]
[1768653138326,0.9525419,3302.9,3301.3,0.24124575]
[1768653138525,0.9525419,3302.8,3301.3,0.24124575]
[1768653138734,0.22607483,3303.1,3301.3,0.24124575]
[1768653138924,0.95249523,3303.0,3301.3,0.24124575]
[1768653139232,0.95249523,3302.9,3301.3,0.24124575]
[1768653139436,0.95249523,3302.8,3301.3,0.24124575]
[1768653139635,0.22607483,3303.1,3301.3,0.24124575]
[1768653139835,0.95245618,3303.0,3301.3,0.24124575]
[1768653140029,0.95245618,3302.9,3301.3,0.24124575]
[1768653140228,0.95245618,3302.8,3301.3,0.24124575]
[1768653140428,0.22607483,3303.1,3301.3,0.24124575]
[1768653140629,0.9524238,3303.0,3301.3,0.24124575]
[1768653140831,0.9524238,3302.9,3301.3,0.24124575]
[1768653141130,0.9524238,3302.8,3301.3,0.24124575]
[1768653141330,0.22607483,3303.1,3301.3,0.24124575]
[1768653141530,0.22607483,3302.9,3301.3,0.24124575]
[1768653141731,0.95239657,3302.8,3301.3,0.24124575]
[1768653141935,0.95239657,3302.7,3301.3,0.24124575]
[1768653142139,0.22607483,3302.9,3301.3,0.24124575]
[1768653142338,0.95238513,3302.8,3301.3,0.24124575]
[1768653142528,0.95238513,3302.7,3301.3,0.24124575]
[1768653142734,0.22607483,3302.9,3301.3,0.24124575]
[1768653143027,0.95237731,3302.8,3301.3,0.24124575]
[1768653143341,0.95237731,3302.7,3301.3,0.24124575]
[1768653143640,0.22607483,3302.9,3301.3,0.24124575]
[1768653143940,0.95229005,3302.8,3301.3,0.24124575]
[1768653144140,0.95229005,3302.7,3301.3,0.24124575]
[1768653144333,0.22607483,3302.9,3301.3,0.24124575]
[1768653144635,0.24326167,3302.7,3301.3,0.24124575]
[1768653154247,0.23389662,3303.1,3301.3,0.24124575]
[1768653154444,0.95635941,3303.0,3301.3,0.24124575]
[1768653154639,0.95635941,3302.9,3301.3,0.24124575]
[1768653154840,0.95635941,3302.8,3301.3,0.24124575]
[1768653155048,0.95635941,3302.7,3301.3,0.24124575]
[1768653155249,0.23389662,3303.1,3301.3,0.24124575]
[1768653155455,0.95639073,3303.0,3301.3,0.24124575]
[1768653155660,0.95639073,3302.9,3301.3,0.24124575]
[1768653155855,0.95639073,3302.8,3301.3,0.24124575]
[1768653156156,0.95639073,3302.7,3301.3,0.24124575]
[1768653156348,0.23389662,3303.1,3301.3,0.24124575]
[1768653156549,0.95642417,3303.0,3301.3,0.24124575]
[1768653156758,0.95642417,3302.9,3301.3,0.24124575]
[1768653156958,0.95642417,3302.8,3301.3,0.24124575]
[1768653157159,0.95642417,3302.7,3301.3,0.24124575]